[Event "Late-Titled-Tuesday-Blitz-December-26-2023"]
[Site "Chess.com"]
[Date "2023.12.26"]
[Round "5"]
[White "karinachess1"]
[Black "ATM622"]
[Result "0-1"]
[WhiteElo "2551"]
[BlackElo "2423"]
[TimeControl "180+1"]
[EndTime "14:55:27 PST"]
[Termination "ATM622 won by resignation"]

1. d4 {[%clk 0:03:00.9]} 1... Nf6 {[%clk 0:02:59.8]} 2. c4 {[%clk 0:03:01.2]}
2... e6 {[%clk 0:02:59.8]} 3. Nc3 {[%clk 0:03:00.9]} 3... Bb4 {[%clk 0:02:59.4]}
4. Qc2 {[%clk 0:03:01.1]} 4... O-O {[%clk 0:02:59]} 5. Nf3 {[%clk 0:03:01.3]}
5... b6 {[%clk 0:02:57.5]} 6. a3 {[%clk 0:03:01.1]} 6... Bxc3+ {[%clk
0:02:57.5]} 7. Qxc3 {[%clk 0:03:02]} 7... Bb7 {[%clk 0:02:57.4]} 8. e3 {[%clk
0:03:00.4]} 8... c5 {[%clk 0:02:55.5]} 9. Be2 {[%clk 0:02:55.3]} 9... cxd4
{[%clk 0:02:55.6]} 10. exd4 {[%clk 0:02:55.4]} 10... d5 {[%clk 0:02:53.2]} 11.
O-O {[%clk 0:02:54.6]} 11... dxc4 {[%clk 0:02:52.1]} 12. Bxc4 {[%clk 0:02:39.1]}
12... Qc7 {[%clk 0:02:51.8]} 13. Ne5 {[%clk 0:02:34.4]} 13... Rc8 {[%clk
0:01:56.8]} 14. Bf4 {[%clk 0:02:18.2]} 14... Nd5 {[%clk 0:01:49.1]} 15. Bxd5
{[%clk 0:02:08]} 15... Qxc3 {[%clk 0:01:46.9]} 16. bxc3 {[%clk 0:02:07.3]} 16...
exd5 {[%clk 0:01:31.9]} 17. Bd2 {[%clk 0:01:52.5]} 17... f6 {[%clk 0:01:30.9]}
18. Nd3 {[%clk 0:01:50.8]} 18... Ba6 {[%clk 0:01:30.3]} 19. c4 {[%clk
0:01:20.1]} 19... dxc4 {[%clk 0:01:12.1]} 20. Nb4 {[%clk 0:01:20.1]} 20... c3
{[%clk 0:01:12.2]} 21. Nxa6 {[%clk 0:01:20.4]} 21... Nxa6 {[%clk 0:01:09.7]} 22.
Be3 {[%clk 0:01:20.7]} 22... Rc4 {[%clk 0:01:07.1]} 23. d5 {[%clk 0:01:07]}
23... Kf7 {[%clk 0:01:04.6]} 24. Rfd1 {[%clk 0:01:03]} 24... c2 {[%clk
0:01:01.3]} 25. Rd3 {[%clk 0:01:03.1]} 25... Rac8 {[%clk 0:00:57.8]} 26. Rc1
{[%clk 0:00:57.6]} 26... Rc3 {[%clk 0:00:51.7]} 27. Rxc3 {[%clk 0:00:56.1]}
27... Rxc3 {[%clk 0:00:51.4]} 28. Kf1 {[%clk 0:00:56.5]} 28... Ke7 {[%clk
0:00:38.3]} 29. Ke2 {[%clk 0:00:54.2]} 29... Kd6 {[%clk 0:00:36.6]} 30. Kd2
{[%clk 0:00:54.2]} 30... Rc4 {[%clk 0:00:31.4]} 31. Rxc2 {[%clk 0:00:52.1]}
31... Rxc2+ {[%clk 0:00:29.9]} 32. Kxc2 {[%clk 0:00:53]} 32... Kxd5 {[%clk
0:00:30.3]} 33. h4 {[%clk 0:00:49.7]} 33... h5 {[%clk 0:00:25.8]} 34. Kc3 {[%clk
0:00:47.1]} 34... Nc7 {[%clk 0:00:24.1]} 35. Kd3 {[%clk 0:00:44.9]} 35... Nb5
{[%clk 0:00:23.6]} 36. a4 {[%clk 0:00:44.2]} 36... Nd6 {[%clk 0:00:15.7]} 37.
Kc3 {[%clk 0:00:43.6]} 37... Nf5 {[%clk 0:00:12.7]} 38. Bf4 {[%clk 0:00:36.7]}
38... Nxh4 {[%clk 0:00:10.9]} 39. g3 {[%clk 0:00:36.6]} 39... Ng6 {[%clk
0:00:08.9]} 40. Bb8 {[%clk 0:00:37.3]} 40... a6 {[%clk 0:00:08.1]} 41. Kb4
{[%clk 0:00:35.4]} 41... Ne7 {[%clk 0:00:07.2]} 42. Bc7 {[%clk 0:00:33.6]} 42...
Nc6+ {[%clk 0:00:06.7]} 43. Kc3 {[%clk 0:00:34.1]} 43... b5 {[%clk 0:00:06.9]}
44. axb5 {[%clk 0:00:34.6]} 44... axb5 {[%clk 0:00:07.2]} 45. Kb3 {[%clk
0:00:34.5]} 45... Ke4 {[%clk 0:00:07]} 46. Bd6 {[%clk 0:00:33.8]} 46... Kf3
{[%clk 0:00:05.6]} 47. Bf8 {[%clk 0:00:33.1]} 47... g5 {[%clk 0:00:05.2]} 48.
Bg7 {[%clk 0:00:32.8]} 48... f5 {[%clk 0:00:04.8]} 49. Bh6 {[%clk 0:00:33.4]}
49... Kxf2 {[%clk 0:00:02.9]} 50. Bxg5 {[%clk 0:00:32.4]} 50... Kxg3 {[%clk
0:00:03.2]} 51. Kc3 {[%clk 0:00:31.5]} 51... h4 {[%clk 0:00:03.3]} 52. Kd3
{[%clk 0:00:30.4]} 52... h3 {[%clk 0:00:03.4]} 53. Ke3 {[%clk 0:00:26.3]} 53...
h2 {[%clk 0:00:03.4]} 54. Bf4+ {[%clk 0:00:27.2]} 54... Kg2 {[%clk 0:00:03.8]}
55. Bxh2 {[%clk 0:00:27.4]} 55... Kxh2 {[%clk 0:00:04.1]} 56. Kf4 {[%clk
0:00:28.3]} 56... b4 {[%clk 0:00:04.3]} 57. Kxf5 {[%clk 0:00:29.2]} 0-1

[Event "Late-Titled-Tuesday-Blitz-December-26-2023"]
[Site "Chess.com"]
[Date "2023.12.26"]
[Round "5"]
[White "ural58"]
[Black "lukazz029"]
[Result "1/2-1/2"]
[WhiteElo "2482"]
[BlackElo "2009"]
[TimeControl "180+1"]
[EndTime "14:55:29 PST"]
[Termination "Game drawn by repetition"]

1. e4 {[%clk 0:01:32]} 1... c5 {[%clk 0:02:58.2]} 2. b3 {[%clk 0:01:31.8]} 2...
e6 {[%clk 0:02:55.3]} 3. Nf3 {[%clk 0:01:29.3]} 3... d5 {[%clk 0:02:54.2]} 4.
Bb5+ {[%clk 0:01:27.5]} 4... Bd7 {[%clk 0:02:52.3]} 5. Qe2 {[%clk 0:01:22.6]}
5... a6 {[%clk 0:02:31.6]} 6. Bxd7+ {[%clk 0:01:15.4]} 6... Qxd7 {[%clk
0:02:32.5]} 7. Ne5 {[%clk 0:01:12.7]} 7... Qd8 {[%clk 0:02:31.4]} 8. exd5 {[%clk
0:01:12.4]} 8... Qxd5 {[%clk 0:02:30.2]} 9. O-O {[%clk 0:01:05.7]} 9... Nf6
{[%clk 0:02:27.3]} 10. Nc3 {[%clk 0:01:04.2]} 10... Qd8 {[%clk 0:02:26.7]} 11.
Bb2 {[%clk 0:01:03.1]} 11... Be7 {[%clk 0:02:23.7]} 12. Rad1 {[%clk 0:01:02.8]}
12... O-O {[%clk 0:02:21.7]} 13. f4 {[%clk 0:01:01.6]} 13... Qc7 {[%clk
0:02:19.6]} 14. f5 {[%clk 0:00:57.6]} 14... Bd6 {[%clk 0:02:13.4]} 15. Rde1
{[%clk 0:00:05.4]} 15... Nbd7 {[%clk 0:01:52.8]} 16. Nxd7 {[%clk 0:00:05]} 16...
Bxh2+ {[%clk 0:01:52.2]} 17. Kh1 {[%clk 0:00:05.3]} 17... Nxd7 {[%clk
0:01:49.8]} 18. fxe6 {[%clk 0:00:06.2]} 18... fxe6 {[%clk 0:01:43.6]} 19. Qxe6+
{[%clk 0:00:06.1]} 19... Kh8 {[%clk 0:01:43.8]} 20. Nd5 {[%clk 0:00:06.3]} 20...
Qd6 {[%clk 0:01:36.9]} 21. Qxd6 {[%clk 0:00:05.2]} 21... Bxd6 {[%clk 0:01:36.1]}
22. d4 {[%clk 0:00:05.3]} 22... Bg3 {[%clk 0:01:28.3]} 23. Rd1 {[%clk
0:00:04.9]} 23... cxd4 {[%clk 0:01:20.7]} 24. Bxd4 {[%clk 0:00:04.3]} 24... Ne5
{[%clk 0:01:03.1]} 25. Ne3 {[%clk 0:00:05.2]} 25... Ng6 {[%clk 0:00:59.3]} 26.
Nf5 {[%clk 0:00:04.8]} 26... Be5 {[%clk 0:00:58]} 27. Bxe5 {[%clk 0:00:04.8]}
27... Nxe5 {[%clk 0:00:58.9]} 28. Kh2 {[%clk 0:00:03.7]} 28... Ng4+ {[%clk
0:00:57.2]} 29. Kg3 {[%clk 0:00:03.5]} 29... Rxf5 {[%clk 0:00:53]} 30. Rxf5
{[%clk 0:00:03.4]} 30... Ne3 {[%clk 0:00:53.5]} 31. Rfd5 {[%clk 0:00:03.8]}
31... Nxd1 {[%clk 0:00:53.1]} 32. Rxd1 {[%clk 0:00:03.4]} 32... Rc8 {[%clk
0:00:53.6]} 33. c4 {[%clk 0:00:03.4]} 33... h6 {[%clk 0:00:53.5]} 34. Rd7 {[%clk
0:00:03.5]} 34... b5 {[%clk 0:00:53.3]} 35. cxb5 {[%clk 0:00:02.9]} 35... axb5
{[%clk 0:00:53.5]} 36. Rb7 {[%clk 0:00:03.5]} 36... Rc3+ {[%clk 0:00:52]} 37.
Kg4 {[%clk 0:00:02.3]} 37... Rc2 {[%clk 0:00:52.2]} 38. g3 {[%clk 0:00:03]}
38... Rxa2 {[%clk 0:00:51.2]} 39. Rxb5 {[%clk 0:00:03.9]} 39... Kh7 {[%clk
0:00:51.2]} 40. b4 {[%clk 0:00:04.8]} 40... Rb2 {[%clk 0:00:51.4]} 41. Rb8
{[%clk 0:00:05.3]} 41... Rb3 {[%clk 0:00:51.8]} 42. Kf4 {[%clk 0:00:05.8]} 42...
h5 {[%clk 0:00:51.2]} 43. g4 {[%clk 0:00:06.7]} 43... hxg4 {[%clk 0:00:50.8]}
44. Kxg4 {[%clk 0:00:06.2]} 44... Kg6 {[%clk 0:00:51.2]} 45. Kf4 {[%clk
0:00:06.9]} 45... Kf6 {[%clk 0:00:51.3]} 46. Ke4 {[%clk 0:00:07.5]} 46... Kg6
{[%clk 0:00:51.4]} 47. Kd4 {[%clk 0:00:08.1]} 47... Rb1 {[%clk 0:00:51.9]} 48.
Kc4 {[%clk 0:00:09]} 48... Kg5 {[%clk 0:00:49.5]} 49. Kc3 {[%clk 0:00:09.6]}
49... Rc1+ {[%clk 0:00:47.5]} 50. Kd2 {[%clk 0:00:09.7]} 50... Rb1 {[%clk
0:00:46.3]} 51. Kc2 {[%clk 0:00:10]} 51... Ra1 {[%clk 0:00:40.6]} 52. b5 {[%clk
0:00:10.9]} 52... Kf6 {[%clk 0:00:40.8]} 53. Rc8 {[%clk 0:00:10.9]} 53... Ra5
{[%clk 0:00:40]} 54. b6 {[%clk 0:00:10.2]} 54... Rb5 {[%clk 0:00:40.2]} 55. Rc6+
{[%clk 0:00:10.8]} 55... Ke7 {[%clk 0:00:39.9]} 56. Kc3 {[%clk 0:00:11.5]} 56...
Kd7 {[%clk 0:00:39.9]} 57. Rg6 {[%clk 0:00:11.2]} 57... Kc8 {[%clk 0:00:39.1]}
58. Kc4 {[%clk 0:00:11.3]} 58... Rb1 {[%clk 0:00:38.8]} 59. Kc5 {[%clk
0:00:11.4]} 59... Rc1+ {[%clk 0:00:38.1]} 60. Kb5 {[%clk 0:00:11.8]} 60... Rb1+
{[%clk 0:00:38.2]} 61. Kc5 {[%clk 0:00:12.1]} 61... Rc1+ {[%clk 0:00:38.5]} 62.
Kb5 {[%clk 0:00:12.5]} 62... Rb1+ {[%clk 0:00:38.9]} 63. Kc5 {[%clk 0:00:13]}
1/2-1/2

[Event "Late-Titled-Tuesday-Blitz-December-26-2023"]
[Site "Chess.com"]
[Date "2023.12.26"]
[Round "5"]
[White "Nf3c5"]
[Black "Alexei_Gubajdullin"]
[Result "1-0"]
[WhiteElo "2504"]
[BlackElo "2607"]
[TimeControl "180+1"]
[EndTime "14:55:32 PST"]
[Termination "Nf3c5 won by checkmate"]

1. d4 {[%clk 0:03:00.9]} 1... Nf6 {[%clk 0:02:58.5]} 2. Nf3 {[%clk 0:03:00.9]}
2... g6 {[%clk 0:02:56.4]} 3. Nc3 {[%clk 0:02:58.3]} 3... Bg7 {[%clk 0:02:55.8]}
4. e4 {[%clk 0:02:57.6]} 4... d6 {[%clk 0:02:56.1]} 5. h3 {[%clk 0:02:53.3]}
5... O-O {[%clk 0:02:56]} 6. Be2 {[%clk 0:02:52.9]} 6... Nc6 {[%clk 0:02:56]} 7.
O-O {[%clk 0:02:49.2]} 7... e6 {[%clk 0:02:55.9]} 8. Bg5 {[%clk 0:02:46.3]} 8...
h6 {[%clk 0:02:55.7]} 9. Be3 {[%clk 0:02:46.4]} 9... b6 {[%clk 0:02:55.3]} 10.
Qd2 {[%clk 0:02:46.8]} 10... Kh7 {[%clk 0:02:55.2]} 11. Rad1 {[%clk 0:02:34.6]}
11... Bb7 {[%clk 0:02:54.3]} 12. Qc1 {[%clk 0:02:35]} 12... Qe7 {[%clk 0:02:51]}
13. Rfe1 {[%clk 0:02:35]} 13... a6 {[%clk 0:02:40]} 14. Bf1 {[%clk 0:02:31.2]}
14... Rfe8 {[%clk 0:02:39.8]} 15. e5 {[%clk 0:01:50.1]} 15... dxe5 {[%clk
0:02:37.4]} 16. dxe5 {[%clk 0:01:49.4]} 16... Nd7 {[%clk 0:02:37.1]} 17. Bf4
{[%clk 0:01:49.4]} 17... Nc5 {[%clk 0:02:31.2]} 18. Re3 {[%clk 0:01:08.3]} 18...
Red8 {[%clk 0:02:29.8]} 19. Rde1 {[%clk 0:01:08.8]} 19... b5 {[%clk 0:02:17.7]}
20. h4 {[%clk 0:01:07.8]} 20... b4 {[%clk 0:02:17.2]} 21. Ne2 {[%clk 0:01:06.9]}
21... Na5 {[%clk 0:02:15.7]} 22. b3 {[%clk 0:01:04.1]} 22... Ne4 {[%clk
0:02:03.3]} 23. Ng3 {[%clk 0:01:01.7]} 23... Nxg3 {[%clk 0:02:02]} 24. Bxg3
{[%clk 0:00:59.9]} 24... Nc6 {[%clk 0:01:58.5]} 25. Bd3 {[%clk 0:00:59.6]} 25...
Nd4 {[%clk 0:01:56.8]} 26. Nh2 {[%clk 0:00:55.4]} 26... Nf5 {[%clk 0:01:55.6]}
27. Bxf5 {[%clk 0:00:54.6]} 27... gxf5 {[%clk 0:01:53.2]} 28. Nf3 {[%clk
0:00:53.7]} 28... Rg8 {[%clk 0:01:50.9]} 29. c3 {[%clk 0:00:53.7]} 29... c5
{[%clk 0:01:47.2]} 30. Rd3 {[%clk 0:00:49.7]} 30... Bh8 {[%clk 0:01:41.4]} 31.
Rd6 {[%clk 0:00:48.2]} 31... Rg4 {[%clk 0:01:38.5]} 32. Nh2 {[%clk 0:00:46.8]}
32... Rg6 {[%clk 0:01:33.9]} 33. Red1 {[%clk 0:00:40.5]} 33... Qf8 {[%clk
0:01:06.5]} 34. Rd7 {[%clk 0:00:38.2]} 34... Be4 {[%clk 0:01:01]} 35. cxb4
{[%clk 0:00:34]} 35... cxb4 {[%clk 0:00:53.9]} 36. Qc7 {[%clk 0:00:33.5]} 36...
Rg7 {[%clk 0:00:52.4]} 37. Qc1 {[%clk 0:00:29.1]} 37... Rc8 {[%clk 0:00:44]} 38.
Qf4 {[%clk 0:00:28.2]} 38... Rc2 {[%clk 0:00:41.1]} 39. Rd8 {[%clk 0:00:24.5]}
39... Qc5 {[%clk 0:00:38.8]} 40. Rxh8+ {[%clk 0:00:20.5]} 40... Kxh8 {[%clk
0:00:34.4]} 41. Qxh6+ {[%clk 0:00:21]} 41... Kg8 {[%clk 0:00:33.9]} 42. Rd8+
{[%clk 0:00:21.4]} 42... Qf8 {[%clk 0:00:33.8]} 43. Rxf8+ {[%clk 0:00:20.6]}
43... Kxf8 {[%clk 0:00:33.8]} 44. Nf1 {[%clk 0:00:18.5]} 44... Rxa2 {[%clk
0:00:32.8]} 45. Ne3 {[%clk 0:00:18.1]} 45... a5 {[%clk 0:00:28.8]} 46. Bf4
{[%clk 0:00:18.3]} 46... a4 {[%clk 0:00:27.3]} 47. Bg5 {[%clk 0:00:16.5]} 47...
f4 {[%clk 0:00:12.3]} 48. Bf6 {[%clk 0:00:16.1]} 48... fxe3 {[%clk 0:00:11.7]}
49. Qxg7+ {[%clk 0:00:14.3]} 49... Ke8 {[%clk 0:00:11.8]} 50. Qg8+ {[%clk
0:00:15]} 50... Kd7 {[%clk 0:00:11.9]} 51. Qxf7+ {[%clk 0:00:15.9]} 51... Kc6
{[%clk 0:00:11.5]} 52. Qxe6+ {[%clk 0:00:16.5]} 52... Kb5 {[%clk 0:00:11.7]} 53.
Qc4+ {[%clk 0:00:16.8]} 53... Ka5 {[%clk 0:00:11.3]} 54. Bd8# {[%clk 0:00:15]}
1-0

[Event "Late-Titled-Tuesday-Blitz-December-26-2023"]
[Site "Chess.com"]
[Date "2023.12.26"]
[Round "5"]
[White "NovakRatko"]
[Black "HalfIsCrayfish"]
[Result "0-1"]
[WhiteElo "2431"]
[BlackElo "2614"]
[TimeControl "180+1"]
[EndTime "14:55:37 PST"]
[Termination "HalfIsCrayfish won on time"]

1. d4 {[%clk 0:03:00.9]} 1... Nf6 {[%clk 0:03:00]} 2. c4 {[%clk 0:03:01.4]} 2...
g6 {[%clk 0:03:00.1]} 3. Nc3 {[%clk 0:03:01.4]} 3... d5 {[%clk 0:03:00.5]} 4. f3
{[%clk 0:03:01.4]} 4... Bg7 {[%clk 0:02:59.5]} 5. e4 {[%clk 0:03:01.3]} 5...
dxe4 {[%clk 0:02:58.1]} 6. fxe4 {[%clk 0:03:02.2]} 6... e5 {[%clk 0:02:54.9]} 7.
d5 {[%clk 0:03:02.1]} 7... O-O {[%clk 0:02:27.1]} 8. Ke2 {[%clk 0:03:01.8]} 8...
Nbd7 {[%clk 0:02:16]} 9. Qc2 {[%clk 0:02:55]} 9... c6 {[%clk 0:02:08.7]} 10. Bg5
{[%clk 0:02:48.9]} 10... h6 {[%clk 0:02:07.3]} 11. Bh4 {[%clk 0:02:48.8]} 11...
g5 {[%clk 0:02:03.7]} 12. Bg3 {[%clk 0:02:48.2]} 12... cxd5 {[%clk 0:02:04]} 13.
cxd5 {[%clk 0:02:46.5]} 13... b6 {[%clk 0:01:57.8]} 14. Nf3 {[%clk 0:02:45.1]}
14... Qe7 {[%clk 0:01:50.7]} 15. h3 {[%clk 0:02:38.4]} 15... Ba6+ {[%clk
0:01:43.2]} 16. Ke1 {[%clk 0:02:36.9]} 16... Bxf1 {[%clk 0:01:40.9]} 17. Rxf1
{[%clk 0:02:32.7]} 17... Rac8 {[%clk 0:01:41.3]} 18. Rd1 {[%clk 0:02:30.1]}
18... Nc5 {[%clk 0:01:33.3]} 19. d6 {[%clk 0:02:26.3]} 19... Qe6 {[%clk
0:01:28.1]} 20. Qe2 {[%clk 0:02:16.9]} 20... Nh5 {[%clk 0:01:25.8]} 21. Bh2
{[%clk 0:02:09.3]} 21... Nf4 {[%clk 0:01:08.5]} 22. Bxf4 {[%clk 0:02:01.6]}
22... exf4 {[%clk 0:01:09.4]} 23. Kf2 {[%clk 0:01:53.6]} 23... Bxc3 {[%clk
0:00:56.5]} 24. bxc3 {[%clk 0:01:51]} 24... Nxe4+ {[%clk 0:00:42.5]} 25. Kg1
{[%clk 0:01:43]} 25... Qf5 {[%clk 0:00:23.7]} 26. d7 {[%clk 0:01:25.9]} 26...
Rcd8 {[%clk 0:00:22.7]} 27. Qd3 {[%clk 0:01:24.6]} 27... Qc5+ {[%clk 0:00:19.7]}
28. Kh2 {[%clk 0:01:18.6]} 28... Nf6 {[%clk 0:00:19.9]} 29. Qd6 {[%clk
0:01:03.4]} 29... Kg7 {[%clk 0:00:20.1]} 30. Qxc5 {[%clk 0:00:57.4]} 30... bxc5
{[%clk 0:00:20]} 31. Ne5 {[%clk 0:00:58]} 31... h5 {[%clk 0:00:13.8]} 32. Rd6
{[%clk 0:00:55.8]} 32... Ne4 {[%clk 0:00:13.1]} 33. Rd5 {[%clk 0:00:39.8]} 33...
Nf6 {[%clk 0:00:12.7]} 34. Rd6 {[%clk 0:00:39.4]} 34... Nxd7 {[%clk 0:00:13]}
35. Rxd7 {[%clk 0:00:37.3]} 35... Rxd7 {[%clk 0:00:13.3]} 36. Nxd7 {[%clk
0:00:37.6]} 36... Rd8 {[%clk 0:00:14]} 37. Nxc5 {[%clk 0:00:37.2]} 37... Rc8
{[%clk 0:00:12.2]} 38. Ne4 {[%clk 0:00:34]} 38... Kg6 {[%clk 0:00:12.4]} 39. Rd1
{[%clk 0:00:30.8]} 39... g4 {[%clk 0:00:12.6]} 40. Rd6+ {[%clk 0:00:29.7]} 40...
Kf5 {[%clk 0:00:12.3]} 41. hxg4+ {[%clk 0:00:16.4]} 41... hxg4 {[%clk
0:00:09.6]} 42. Rd4 {[%clk 0:00:13.6]} 42... Rb8 {[%clk 0:00:09.1]} 43. Nd6+
{[%clk 0:00:12.2]} 43... Ke5 {[%clk 0:00:07.9]} 44. Nxf7+ {[%clk 0:00:11.1]}
44... Kf5 {[%clk 0:00:06.2]} 45. Nd6+ {[%clk 0:00:10.3]} 45... Ke5 {[%clk
0:00:06.8]} 46. Nc4+ {[%clk 0:00:09.5]} 46... Kf5 {[%clk 0:00:07.2]} 47. Nd6+
{[%clk 0:00:07.9]} 47... Ke5 {[%clk 0:00:07.5]} 48. Nf7+ {[%clk 0:00:06.4]}
48... Kf5 {[%clk 0:00:06.6]} 49. Rd2 {[%clk 0:00:02.7]} 49... g3+ {[%clk
0:00:06.3]} 0-1

[Event "Late-Titled-Tuesday-Blitz-December-26-2023"]
[Site "Chess.com"]
[Date "2023.12.26"]
[Round "5"]
[White "Flaccidmoves"]
[Black "aranibos"]
[Result "1-0"]
[WhiteElo "2396"]
[BlackElo "2153"]
[TimeControl "180+1"]
[EndTime "14:55:37 PST"]
[Termination "Flaccidmoves won by resignation"]

1. e4 {[%clk 0:03:00.9]} 1... c5 {[%clk 0:02:59.5]} 2. a3 {[%clk 0:02:55.3]}
2... Nc6 {[%clk 0:02:57.3]} 3. b4 {[%clk 0:02:54.9]} 3... cxb4 {[%clk
0:02:57.6]} 4. axb4 {[%clk 0:02:55.8]} 4... Nxb4 {[%clk 0:02:57.7]} 5. d4 {[%clk
0:02:52.9]} 5... e6 {[%clk 0:02:54.4]} 6. c3 {[%clk 0:02:50.3]} 6... Nc6 {[%clk
0:02:54.4]} 7. d5 {[%clk 0:02:50.4]} 7... Ne5 {[%clk 0:02:47.8]} 8. f4 {[%clk
0:02:48.4]} 8... Ng6 {[%clk 0:02:45.2]} 9. Be3 {[%clk 0:02:33.6]} 9... exd5
{[%clk 0:02:42.5]} 10. exd5 {[%clk 0:02:34.5]} 10... Bd6 {[%clk 0:02:41.9]} 11.
Nf3 {[%clk 0:02:10.4]} 11... Qe7 {[%clk 0:02:32.6]} 12. Kf2 {[%clk 0:01:58.8]}
12... Nxf4 {[%clk 0:02:26.1]} 13. Bb5 {[%clk 0:01:46.2]} 13... Nf6 {[%clk
0:02:05.9]} 14. Bxf4 {[%clk 0:01:40]} 14... Bxf4 {[%clk 0:01:52.7]} 15. Qd4
{[%clk 0:00:37.9]} 15... Ne4+ {[%clk 0:01:44.6]} 16. Kg1 {[%clk 0:00:25.9]}
16... O-O {[%clk 0:01:44.4]} 17. Bd3 {[%clk 0:00:20.4]} 17... Ng3 {[%clk
0:01:25.9]} 18. Qxf4 {[%clk 0:00:18]} 18... Nxh1 {[%clk 0:01:12.7]} 19. Kxh1
{[%clk 0:00:17.9]} 19... d6 {[%clk 0:01:08.6]} 20. Nbd2 {[%clk 0:00:18]} 20...
g6 {[%clk 0:00:45.7]} 21. h4 {[%clk 0:00:18]} 21... Kg7 {[%clk 0:00:31.2]} 22.
Re1 {[%clk 0:00:18.4]} 22... Qf6 {[%clk 0:00:31.5]} 23. Qxf6+ {[%clk 0:00:17.9]}
23... Kxf6 {[%clk 0:00:31.1]} 24. Ne4+ {[%clk 0:00:18.6]} 24... Kg7 {[%clk
0:00:22]} 25. Nxd6 {[%clk 0:00:18.5]} 25... Bg4 {[%clk 0:00:22.3]} 26. Nxb7
{[%clk 0:00:15.7]} 26... a5 {[%clk 0:00:17.8]} 27. d6 {[%clk 0:00:12.8]} 27...
a4 {[%clk 0:00:17.6]} 28. Bb5 {[%clk 0:00:11.3]} 28... Bxf3 {[%clk 0:00:16.6]}
29. gxf3 {[%clk 0:00:10.9]} 29... a3 {[%clk 0:00:17.1]} 30. d7 {[%clk 0:00:10]}
30... a2 {[%clk 0:00:16.9]} 31. Ra1 {[%clk 0:00:10.5]} 31... Rfb8 {[%clk
0:00:14.4]} 32. Bc6 {[%clk 0:00:08.4]} 32... Ra3 {[%clk 0:00:10.8]} 33. d8=Q
{[%clk 0:00:06.7]} 33... Rxd8 {[%clk 0:00:11.4]} 34. Nxd8 {[%clk 0:00:07.6]}
34... Rxc3 {[%clk 0:00:11.2]} 35. Rxa2 {[%clk 0:00:07.2]} 35... Rd3 {[%clk
0:00:08]} 36. Ra8 {[%clk 0:00:06.4]} 36... Kh6 {[%clk 0:00:06.3]} 37. Be4 {[%clk
0:00:06.4]} 37... Kh5 {[%clk 0:00:07]} 38. Bxd3 {[%clk 0:00:06.1]} 38... Kxh4
{[%clk 0:00:03.1]} 39. Nxf7 {[%clk 0:00:06.2]} 39... Kg3 {[%clk 0:00:04]} 40.
Ng5 {[%clk 0:00:05.6]} 40... h5 {[%clk 0:00:03.9]} 41. Bxg6 {[%clk 0:00:05.4]}
41... h4 {[%clk 0:00:04.8]} 42. Rh8 {[%clk 0:00:04.3]} 42... Kf2 {[%clk
0:00:05.2]} 43. Rxh4 {[%clk 0:00:04.9]} 43... Ke3 {[%clk 0:00:05.6]} 44. Rh2
{[%clk 0:00:05.8]} 44... Kf4 {[%clk 0:00:05.7]} 45. Rg2 {[%clk 0:00:06.5]} 45...
Ke5 {[%clk 0:00:06.1]} 46. Kh2 {[%clk 0:00:07.1]} 46... Kf6 {[%clk 0:00:06.5]}
47. Kg3 {[%clk 0:00:08]} 47... Kxg6 {[%clk 0:00:06.6]} 48. Kg4 {[%clk
0:00:08.9]} 48... Kf6 {[%clk 0:00:06.9]} 49. f4 {[%clk 0:00:09.2]} 49... Ke7
{[%clk 0:00:06.3]} 50. f5 {[%clk 0:00:10.1]} 50... Kd6 {[%clk 0:00:06.8]} 51.
Kf4 {[%clk 0:00:10]} 51... Ke7 {[%clk 0:00:07.2]} 52. Ke5 {[%clk 0:00:10.3]}
52... Kf8 {[%clk 0:00:07.2]} 53. Ra2 {[%clk 0:00:11]} 53... Kg7 {[%clk 0:00:07]}
54. Ra7+ {[%clk 0:00:11.1]} 54... Kh6 {[%clk 0:00:06.7]} 55. Kf4 {[%clk
0:00:09.8]} 1-0